[Event "Turkish Second League 2019"]
[Site "Konya"]
[Date "2019.07.24"]
[Round "4"]
[White "Akdag, Omer Amir"]
[Black "Ozturk, Efe Hakan"]
[Result "1-0"]
[ECO "A47"]
[WhiteElo "1903"]
[BlackElo "2017"]
[Annotator "NA"]
[PlyCount "67"]
[EventDate "2019.07.22"]
[EventType "team-tourn"]
[EventCountry "TUR"]
[SourceTitle "playchess.com"]
[Source "ChessBase"]
[SourceQuality "1"]
[TimeControl "5400+30"]

1. d4 {[%emt 0:00:30]} Nf6 {[%emt 0:02:30]} 2. Nf3 {[%emt 0:00:00]} b6 {[%emt 0:04:30]} 3. e3 {[%emt 0:01:00]} Bb7 {[%emt 0:00:30]} 4. Bd3 {[%emt 0:00:00]} g6 {[%emt 0:01:30]} 5. b3 {[%emt 0:02:00]} Bg7 {[%emt 0:00:30]} 6. Bb2 {[%emt 0:00:00]} O-O {[%emt 0:00:00]} 7. O-O {[%emt 0:01:00]} d6 {[%emt 0:06:00]} 8. c4 {[%emt 0:07:30]} Nfd7 {[%emt 0:04:30]} 9. Nc3 {[%emt 0:06:30]} e5 {[%emt 0:06:30]} 10. dxe5 {[%emt 0:13:30]} dxe5 {[%emt 0:14:30]} 11. Be4 {[%emt 0:10:30]} c6 {[%emt 0:04:30]} 12. Bc2 {[%emt 0:11:30]} f5 {[%emt 0:10:30]} 13. Qd2 {[%emt 0:04:30]} e4 {[%emt 0:09:30]} 14. Nd4 {[%emt 0:02:30]} Re8 {[%emt 0:01:30]} 15. Nde2 {[%emt 0:02:30]} Qg5 {[%emt 0:02:30]} 16. Rad1 {[%emt 0:07:30]} Ne5 {[%emt 0:01:30]} 17. Kh1 {[%emt 0:01:30]} Nbd7 {[%emt 0:07:40]} 18. Nf4 {[%emt 0:04:30]} Nf6 {[%emt 0:03:55]} 19. Nce2 {[%emt 0:02:59]} Nfg4 {[%emt 0:02:01]} 20. h3 {[%emt 0:15:17]} Qh4 {[%emt 0:08:21]} 21. Ng3 {[%emt 0:02:26]} Bc8 {[%emt 0:05:17]} 22. Kg1 {[%emt 0:02:41]} g5 {[%emt 0:02:08]} 23. Bxe5 {[%emt 0:00:15]} Nxe5 {[%emt 0:00:34]} 24. Nfh5 {[%emt 0:00:16]} f4 {[%emt 0:00:30]} 25. exf4 {[%emt 0:00:28]} Nf3+ {[%emt 0:00:22]} 26. gxf3 {[%emt 0:00:12]} exf3 {[%emt 0:00:14]} 27. Qd3 {[%emt 0:00:27]} Kf8 {[%emt 0:00:56]} 28. Qxh7 {[%emt 0:00:27]} Bc3 {[%emt 0:00:29]} 29. Qh6+ {[%emt 0:00:10]} Kf7 {[%emt 0:00:26]} 30. Qg6+ {[%emt 0:00:29]} Kf8 {[%emt 0:00:15]} 31. Qh6+ {[%emt 0:00:25]} Kf7 {[%emt 0:00:02]} 32. Bg6+ {[%emt 0:00:12]} Ke7 {[%emt 0:00:56]} 33. Rfe1+ {[%emt 0:00:10]} Bxe1 {[%emt 0:00:06]} 34. Qg7+ {[%emt 0:00:03]} 1-0

[Event "Turkish Second League 2019"]
[Site "Konya"]
[Date "2019.07.24"]
[Round "4"]
[White "Ozsakallioglu, Akin"]
[Black "Demirag, Gokhan"]
[Result "1-0"]
[ECO "B14"]
[WhiteElo "1901"]
[BlackElo "1974"]
[Annotator "NA"]
[PlyCount "139"]
[EventDate "2019.07.22"]
[EventType "team-tourn"]
[EventCountry "TUR"]
[SourceTitle "playchess.com"]
[Source "ChessBase"]
[SourceQuality "1"]
[TimeControl "5400+30"]

1. e4 {[%emt 0:00:30]} c6 {[%emt 0:00:30]} 2. d4 {[%emt 0:00:00]} d5 {[%emt 0:00:30]} 3. exd5 {[%emt 0:00:00]} cxd5 {[%emt 0:00:30]} 4. c4 {[%emt 0:00:30]} Nf6 {[%emt 0:00:00]} 5. Nc3 {[%emt 0:00:30]} e6 {[%emt 0:00:00]} 6. Nf3 {[%emt 0:00:00]} Bb4 {[%emt 0:01:30]} 7. cxd5 {[%emt 0:00:00]} Nxd5 {[%emt 0:00:00]} 8. Bd2 {[%emt 0:00:30]} Nc6 {[%emt 0:00:00]} 9. Bd3 {[%emt 0:01:30]} O-O {[%emt 0:02:30]} 10. O-O {[%emt 0:01:30]} Be7 {[%emt 0:00:30]} 11. a3 {[%emt 0:03:30]} Bf6 {[%emt 0:00:00]} 12. Be3 {[%emt 0:00:00]} Nce7 {[%emt 0:04:00]} 13. Ne4 {[%emt 0:01:00]} b6 {[%emt 0:08:30]} 14. Nxf6+ {[%emt 0:04:30]} Nxf6 {[%emt 0:00:00]} 15. Bg5 {[%emt 0:00:00]} Bb7 {[%emt 0:02:00]} 16. Ne5 {[%emt 0:04:00]} Qd5 {[%emt 0:01:30]} 17. Qf3 {[%emt 0:02:30]} Qxf3 {[%emt 0:00:30]} 18. Nxf3 {[%emt 0:00:00]} Rfd8 {[%emt 0:05:30]} 19. Rfd1 {[%emt 0:01:00]} h6 {[%emt 0:01:30]} 20. Be3 {[%emt 0:00:30]} Rac8 {[%emt 0:07:30]} 21. Rac1 {[%emt 0:04:30]} Ned5 {[%emt 0:05:30]} 22. Ne5 {[%emt 0:07:30]} Kf8 {[%emt 0:10:30]} 23. Rxc8 {[%emt 0:04:30]} Rxc8 {[%emt 0:00:30]} 24. Bd2 {[%emt 0:00:30]} Rc7 {[%emt 0:01:30]} 25. f3 {[%emt 0:00:30]} a6 {[%emt 0:04:30]} 26. Kf2 {[%emt 0:01:30]} Ke8 {[%emt 0:00:30]} 27. h4 {[%emt 0:01:30]} Nd7 {[%emt 0:03:30]} 28. Nc4 {[%emt 0:01:30]} Ke7 {[%emt 0:02:30]} 29. g4 {[%emt 0:01:30]} Bc6 {[%emt 0:01:30]} 30. b3 {[%emt 0:00:30]} b5 {[%emt 0:00:30]} 31. Na5 {[%emt 0:05:30]} N7b6 {[%emt 0:06:30]} 32. Rg1 {[%emt 0:03:30]} f6 {[%emt 0:06:30]} 33. g5 {[%emt 0:02:30]} hxg5 {[%emt 0:00:30]} 34. hxg5 {[%emt 0:00:00]} f5 {[%emt 0:00:30]} 35. Rh1 {[%emt 0:02:00]} Be8 {[%emt 0:00:30]} 36. Rh7 {[%emt 0:04:30]} Kf7 {[%emt 0:00:30]} 37. Rh8 {[%emt 0:00:30]} Ne7 {[%emt 0:00:30]} 38. b4 {[%emt 0:14:30]} Ng6 {[%emt 0:00:30]} 39. Rh1 {[%emt 0:00:30]} Nc4 {[%emt 0:03:30]} 40. Rc1 {[%emt 0:03:30]} Rd7 {[%emt 0:03:45]} 41. Nxc4 {[%emt 0:01:30]} bxc4 {[%emt 0:01:36]} 42. Bxc4 {[%emt 0:00:30]} Rxd4 {[%emt 0:01:08]} 43. Be3 {[%emt 0:00:30]} Rd6 {[%emt 0:00:19]} 44. Bc5 {[%emt 0:00:30]} Rd2+ {[%emt 0:00:30]} 45. Ke3 {[%emt 0:00:30]} Rb2 {[%emt 0:00:30]} 46. Bd4 {[%emt 0:00:30]} Rg2 {[%emt 0:00:30]} 47. Bxa6 {[%emt 0:00:30]} Ba4 {[%emt 0:00:30]} 48. Rc7+ {[%emt 0:00:30]} Ke8 {[%emt 0:00:30]} 49. Bxg7 {[%emt 0:00:30]} e5 {[%emt 0:00:30]} 50. Bf6 {[%emt 0:00:30]} Ra2 {[%emt 0:00:30]} 51. Bc4 {[%emt 0:00:30]} Rxa3+ {[%emt 0:00:30]} 52. Kd2 {[%emt 0:00:30]} Bd7 {[%emt 0:00:30]} 53. Rb7 {[%emt 0:00:30]} Ra8 {[%emt 0:00:30]} 54. b5 {[%emt 0:00:30]} Rc8 {[%emt 0:00:30]} 55. Bb3 {[%emt 0:00:30]} Nh4 {[%emt 0:00:30]} 56. Bd5 {[%emt 0:00:30]} Ng6 {[%emt 0:00:30]} 57. b6 {[%emt 0:00:30]} Nf4 {[%emt 0:00:30]} 58. Bf7+ {[%emt 0:00:30]} Kxf7 {[%emt 0:00:30]} 59. Rxd7+ {[%emt 0:00:30]} Ke6 {[%emt 0:00:30]} 60. Re7+ {[%emt 0:00:30]} Kd5 {[%emt 0:00:30]} 61. b7 {[%emt 0:00:30]} Rd8 {[%emt 0:00:30]} 62. Rd7+ {[%emt 0:00:30]} Rxd7 {[%emt 0:00:30]} 63. b8=Q {[%emt 0:00:30]} Ke6+ {[%emt 0:00:30]} 64. Kc2 {[%emt 0:00:30]} Rd5 {[%emt 0:00:30]} 65. Qg8+ {[%emt 0:00:30]} Kd6 {[%emt 0:00:30]} 66. Qf8+ {[%emt 0:00:30]} Kc6 {[%emt 0:00:30]} 67. Qe8+ {[%emt 0:00:30]} Kc5 {[%emt 0:00:30]} 68. g6 {[%emt 0:16:25]} Nd3 {[%emt 0:12:57]} 69. g7 {[%emt 0:00:54]} Nb4+ {[%emt 0:00:30]} 70. Kc1 {[%emt 0:00:06]} 1-0

[Event "Turkish Second League 2019"]
[Site "Konya"]
[Date "2019.07.24"]
[Round "4"]
[White "Can, Furkan"]
[Black "Ozkurt, Kutay"]
[Result "1-0"]
[ECO "D12"]
[WhiteElo "1900"]
[BlackElo "1824"]
[Annotator "NA"]
[PlyCount "63"]
[EventDate "2019.07.22"]
[EventType "team-tourn"]
[EventCountry "TUR"]
[SourceTitle "playchess.com"]
[Source "ChessBase"]
[SourceQuality "1"]
[TimeControl "5400+30"]

1. d4 {[%emt 0:00:30]} d5 {[%emt 0:00:30]} 2. Nf3 {[%emt 0:00:30]} Nf6 {[%emt 0:00:00]} 3. e3 {[%emt 0:00:30]} Bf5 {[%emt 0:00:00]} 4. c4 {[%emt 0:00:30]} e6 {[%emt 0:02:30]} 5. Nc3 {[%emt 0:03:30]} c6 {[%emt 0:02:30]} 6. Qb3 {[%emt 0:00:30]} Qb6 {[%emt 0:00:00]} 7. c5 {[%emt 0:05:30]} Qc7 {[%emt 0:03:00]} 8. Qa4 {[%emt 0:00:30]} Nbd7 {[%emt 0:04:30]} 9. b4 {[%emt 0:00:30]} a6 {[%emt 0:00:30]} 10. b5 {[%emt 0:02:30]} cxb5 {[%emt 0:00:00]} 11. Bxb5 {[%emt 0:09:30]} Rc8 {[%emt 0:00:00]} 12. Be2 {[%emt 0:00:30]} Be7 {[%emt 0:01:30]} 13. Ba3 {[%emt 0:04:30]} O-O {[%emt 0:06:30]} 14. O-O {[%emt 0:00:30]} Ne4 {[%emt 0:11:30]} 15. Nxe4 {[%emt 0:15:30]} Bxe4 {[%emt 0:03:30]} 16. Qb3 {[%emt 0:12:30]} Rb8 {[%emt 0:02:30]} 17. Rac1 {[%emt 0:06:30]} Bxf3 {[%emt 0:01:30]} 18. Bxf3 {[%emt 0:00:30]} f5 {[%emt 0:00:30]} 19. Rb1 {[%emt 0:08:30]} Bd8 {[%emt 0:05:30]} 20. Rfc1 {[%emt 0:01:30]} Qc6 {[%emt 0:00:30]} 21. Bd1 {[%emt 0:01:30]} Re8 {[%emt 0:08:30]} 22. Qa4 {[%emt 0:01:30]} Qc7 {[%emt 0:07:30]} 23. Bf3 {[%emt 0:00:30]} g5 {[%emt 0:07:30]} 24. Bh5 {[%emt 0:09:00]} Rf8 {[%emt 0:05:30]} 25. c6 {[%emt 0:01:52]} bxc6 {[%emt 0:05:30]} 26. Bxf8 {[%emt 0:01:04]} Kxf8 {[%emt 0:00:00]} 27. Be2 {[%emt 0:01:32]} a5 {[%emt 0:02:00]} 28. Rxb8 {[%emt 0:01:02]} Nxb8 {[%emt 0:00:30]} 29. Qb3 {[%emt 0:01:12]} Qd6 {[%emt 0:00:00]} 30. Qb7 {[%emt 0:01:23]} Bc7 {[%emt 0:00:00]} 31. g3 {[%emt 0:00:30]} Qd8 {[%emt 0:00:30]} 32. Bb5 {[%emt 0:00:30]} 1-0

[Event "Turkish Second League 2019"]
[Site "Konya"]
[Date "2019.07.24"]
[Round "4"]
[White "Demirtas, Hafize"]
[Black "Kara, Gulce Nehir"]
[Result "1-0"]
[ECO "B22"]
[WhiteElo "1893"]
[BlackElo "1767"]
[Annotator "NA"]
[PlyCount "51"]
[EventDate "2019.07.22"]
[EventType "team-tourn"]
[EventCountry "TUR"]
[SourceTitle "playchess.com"]
[Source "ChessBase"]
[SourceQuality "1"]
[TimeControl "5400+30"]

1. e4 {[%emt 0:00:30]} c5 {[%emt 0:00:30]} 2. Nf3 {[%emt 0:00:30]} e6 {[%emt 0:00:00]} 3. c3 {[%emt 0:00:00]} Nf6 {[%emt 0:00:00]} 4. e5 {[%emt 0:00:00]} Nd5 {[%emt 0:00:30]} 5. d4 {[%emt 0:00:00]} cxd4 {[%emt 0:00:00]} 6. cxd4 {[%emt 0:00:00]} d6 {[%emt 0:00:00]} 7. Nc3 {[%emt 0:00:00]} Nxc3 {[%emt 0:00:30]} 8. bxc3 {[%emt 0:00:00]} Qc7 {[%emt 0:00:00]} 9. Bd2 {[%emt 0:00:30]} Nd7 {[%emt 0:00:00]} 10. Ng5 {[%emt 0:00:30]} Be7 {[%emt 0:18:30]} 11. exd6 {[%emt 0:05:30]} Qxd6 {[%emt 0:00:30]} 12. Qh5 {[%emt 0:08:30]} Bxg5 {[%emt 0:02:30]} 13. Qxg5 {[%emt 0:01:30]} O-O {[%emt 0:01:30]} 14. Bd3 {[%emt 0:07:30]} e5 {[%emt 0:11:30]} 15. Qh4 {[%emt 0:04:30]} f5 {[%emt 0:05:30]} 16. Bc4+ {[%emt 0:02:30]} Kh8 {[%emt 0:00:30]} 17. O-O {[%emt 0:03:30]} Nb6 {[%emt 0:04:30]} 18. Bb3 {[%emt 0:02:30]} f4 {[%emt 0:11:30]} 19. Rfe1 {[%emt 0:05:30]} Nd7 {[%emt 0:15:30]} 20. Rad1 {[%emt 0:05:30]} exd4 {[%emt 0:02:30]} 21. cxd4 {[%emt 0:03:30]} Qxd4 {[%emt 0:06:30]} 22. Bc1 {[%emt 0:13:30]} Qb4 {[%emt 0:04:36]} 23. Bb2 {[%emt 0:06:30]} Nf6 {[%emt 0:11:08]} 24. Bxf6 {[%emt 0:05:30]} gxf6 {[%emt 0:00:46]} 25. Bc2 {[%emt 0:01:30]} f5 {[%emt 0:00:40]} 26. Re7 {[%emt 0:00:30]} 1-0

[Event "Turkish Second League 2019"]
[Site "Konya"]
[Date "2019.07.24"]
[Round "4"]
[White "Catal, Uktenur"]
[Black "Kaygisiz, Ilayda"]
[Result "0-1"]
[ECO "D87"]
[WhiteElo "1885"]
[BlackElo "1775"]
[Annotator "NA"]
[PlyCount "65"]
[EventDate "2019.07.22"]
[EventType "team-tourn"]
[EventCountry "TUR"]
[SourceTitle "playchess.com"]
[Source "ChessBase"]
[SourceQuality "1"]
[TimeControl "5400+30"]

1. d4 Nf6 2. c4 g6 3. Nc3 d5 4. cxd5 Nxd5 5. e4 Nxc3 6. bxc3 Bg7 7. Bc4 O-O 8. Ne2 c5 9. Be3 Nc6 10. O-O Bg4 11. f3 Bd7 12. Rc1 Qc7 13. Qd2 Rfd8 14. Bf4 Qc8 15. d5 Ne5 16. Bxe5 Bxe5 17. f4 Bg7 18. Rb1 a6 19. Qe3 b5 20. Bd3 c4 21. Bc2 Qc7 22. e5 Be8 23. Be4 Rab8 24. Kh1 a5 25. Nd4 b4 26. cxb4 axb4 27. Nc6 Bxc6 28. dxc6 f6 29. Qc5 fxe5 30. Qxc4+ Kh8 31. Rxb4 Rxb4 32. Qxb4 exf4 33. Bf3 {[%emt 1:41:13]} 0-1

[Event "Turkish Second League 2019"]
[Site "Konya"]
[Date "2019.07.24"]
[Round "4"]
[White "Ilkimen, Mehmet Emre"]
[Black "Zuberoglu, Ibrahim Berk"]
[Result "*"]
[ECO "B23"]
[WhiteElo "1863"]
[BlackElo "1737"]
[Annotator "NA"]
[PlyCount "39"]
[EventDate "2019.07.22"]
[EventType "team-tourn"]
[EventCountry "TUR"]
[SourceTitle "playchess.com"]
[Source "ChessBase"]
[SourceQuality "1"]
[TimeControl "5400+30"]

1. e4 {[%emt 0:00:30]} c5 {[%emt 0:00:30]} 2. Nc3 {[%emt 0:00:00]} d6 {[%emt 0:00:30]} 3. f4 {[%emt 0:00:00]} g6 {[%emt 0:05:30]} 4. Nf3 {[%emt 0:01:30]} Bg7 {[%emt 0:00:30]} 5. Bb5+ {[%emt 0:02:30]} Bd7 {[%emt 0:00:30]} 6. Bxd7+ {[%emt 0:01:30]} Qxd7 {[%emt 0:00:30]} 7. d3 {[%emt 0:00:30]} Nc6 {[%emt 0:00:30]} 8. O-O {[%emt 0:00:00]} e6 {[%emt 0:01:30]} 9. Qe1 {[%emt 0:08:30]} Nge7 {[%emt 0:03:30]} 10. Ne2 {[%emt 0:02:30]} O-O {[%emt 0:05:30]} 11. c3 {[%emt 0:02:30]} b5 {[%emt 0:15:30]} 12. Ng3 {[%emt 0:03:30]} b4 {[%emt 0:09:30]} 13. Be3 {[%emt 0:14:30]} Rab8 {[%emt 0:08:30]} 14. Bc1 {[%emt 0:36:30]} bxc3 {[%emt 0:03:30]} 15. bxc3 {[%emt 0:00:30]} Nb4 {[%emt 0:04:30]} 16. Qd2 {[%emt 0:04:30]} Qa4 {[%emt 0:06:30]} 17. Rf2 {[%emt 0:02:30]} Nbc6 {[%emt 0:03:30]} 18. f5 {[%emt 0:04:36]} exf5 {[%emt 0:07:30]} 19. exf5 {[%emt 0:00:36]} Nd5 {[%emt 0:02:30]} 20. Bb2 {[%emt 0:12:46]} *

[Event "Turkish Second League 2019"]
[Site "Konya"]
[Date "2019.07.24"]
[Round "4"]
[White "Kayan, Veli"]
[Black "Tofan, Ibrahim"]
[Result "1-0"]
[ECO "C54"]
[WhiteElo "1863"]
[BlackElo "2043"]
[Annotator "NA"]
[PlyCount "209"]
[EventDate "2019.07.22"]
[EventType "team-tourn"]
[EventCountry "TUR"]
[SourceTitle "playchess.com"]
[Source "ChessBase"]
[SourceQuality "1"]
[TimeControl "5400+30"]

1. e4 e5 2. Nf3 Nc6 3. Bc4 Bc5 4. c3 Nf6 5. d4 exd4 6. cxd4 Bb4+ 7. Nc3 Nxe4 8. O-O Bxc3 9. d5 Bf6 10. Re1 O-O 11. Rxe4 Ne7 12. d6 cxd6 13. Ng5 d5 14. Bxd5 Nxd5 15. Qxd5 d6 16. Bd2 Bd7 17. Re2 Bc6 18. Qf5 g6 19. Qf4 Bxg5 20. Qxg5 Qxg5 21. Bxg5 f6 22. Bf4 Rad8 23. Be3 Rfe8 24. Rae1 Bb5 25. Rd2 Re6 26. Red1 a6 27. h4 Kf7 28. Kh2 Rd7 29. Rd4 h5 30. R1d2 Bc6 31. Kg3 d5 32. Bf4 Rde7 33. a3 Re8 34. Kf3 Re1 35. Rd1 R1e7 36. Be3 Rg8 37. Rh1 Re5 38. Ke2 Rh8 39. Kd2 Rc8 40. Rc1 Ree8 41. g3 Rg8 42. a4 g5 43. b3 Kg6 44. Rc3 Rcd8 45. Rc5 Rge8 46. Rc1 Re4 47. Rh1 Rde8 48. Kd3 Rxd4+ 49. Bxd4 Re4 50. f3 Re8 51. Kd2 gxh4 52. Rxh4 Bd7 53. Rf4 Re6 54. Rh4 b5 55. a5 Re7 56. Rh1 Rh7 57. Ke3 Kg5 58. Rc1 h4 59. gxh4+ Rxh4 60. Rc7 Rh7 61. Ra7 f5 62. f4+ Kg4 63. Be5 b4 64. Kd4 Kf3 65. Rc7 Rf7 66. Kxd5 Be8 67. Rc8 Bb5 68. Kc5 Rb7 69. Rh8 Be2 70. Rh3+ Ke4 71. Rh6 Rb5+ 72. Kc6 Rxa5 73. Rd6 {[%emt 1:55:17]} Rb5 {[%emt 2:05:01]} 74. Rd4+ {[%emt 0:00:30]} Ke3 {[%emt 0:00:30]} 75. Kd6 {[%emt 0:00:30]} Bd3 {[%emt 0:00:30]} 76. Rd5 {[%emt 0:00:30]} Rb7 {[%emt 0:00:17]} 77. Ra5 {[%emt 0:00:28]} Bb5 {[%emt 0:00:30]} 78. Kc5 {[%emt 0:00:30]} Kd3 {[%emt 0:00:30]} 79. Ra1 {[%emt 0:00:30]} Kc2 {[%emt 0:01:11]} 80. Kxb4 {[%emt 0:02:34]} Be8+ {[%emt 0:00:32]} 81. Kc5 {[%emt 0:00:23]} Rb5+ {[%emt 0:00:33]} 82. Kd6 {[%emt 0:01:26]} Rb6+ {[%emt 0:00:14]} 83. Kc5 {[%emt 0:00:41]} Rc6+ {[%emt 0:00:40]} 84. Kb4 {[%emt 0:01:07]} Bf7 {[%emt 0:00:09]} 85. Ra2+ {[%emt 0:00:07]} Kb1 {[%emt 0:00:36]} 86. Rb2+ {[%emt 0:00:20]} Kc1 {[%emt 0:00:13]} 87. Rg2 {[%emt 0:01:04]} Bd5 {[%emt 0:00:32]} 88. Rh2 {[%emt 0:00:57]} Be4 {[%emt 0:00:43]} 89. Ka5 {[%emt 0:00:57]} Bc2 {[%emt 0:00:18]} 90. b4 {[%emt 0:00:55]} Bd3 {[%emt 0:00:35]} 91. Rh7 {[%emt 0:00:47]} Kb1 {[%emt 0:00:35]} 92. Rd7 {[%emt 0:00:00]} Bb5 {[%emt 0:00:13]} 93. Rd6 {[%emt 0:00:43]} Rc8 {[%emt 0:00:32]} 94. Rxa6 {[%emt 0:00:26]} Bd3 {[%emt 0:00:44]} 95. Rd6 {[%emt 0:00:38]} Ra8+ {[%emt 0:00:19]} 96. Kb6 {[%emt 0:00:11]} Kc2 {[%emt 0:00:14]} 97. Rxd3 {[%emt 0:02:11]} Kxd3 {[%emt 0:00:04]} 98. Kc5 {[%emt 0:00:00]} Ke4 {[%emt 0:00:31]} 99. b5 {[%emt 0:00:00]} Rc8+ {[%emt 0:00:30]} 100. Kd6 {[%emt 0:00:20]} Rb8 {[%emt 0:00:30]} 101. Kc6 {[%emt 0:00:06]} Ra8 {[%emt 0:00:49]} 102. b6 {[%emt 0:00:35]} Ra6 {[%emt 0:00:02]} 103. Kb5 {[%emt 0:00:00]} Ra3 {[%emt 0:00:13]} 104. b7 {[%emt 0:00:00]} Rb3+ {[%emt 0:01:05]} 105. Kc6 {[%emt 0:00:04]} 1-0

[Event "Turkish Second League 2019"]
[Site "Konya"]
[Date "2019.07.24"]
[Round "4"]
[White "Ucucu, Salih"]
[Black "Uyan, Ata Gunduz"]
[Result "1-0"]
[ECO "B28"]
[WhiteElo "1819"]
[BlackElo "1781"]
[Annotator "NA"]
[PlyCount "80"]
[EventDate "2019.07.22"]
[EventType "team-tourn"]
[EventCountry "TUR"]
[SourceTitle "playchess.com"]
[Source "ChessBase"]
[SourceQuality "1"]
[TimeControl "5400+30"]

1. e4 c5 2. Nf3 a6 3. d4 cxd4 4. Nxd4 Nf6 5. Nc3 e5 6. Nf3 Nc6 7. Bc4 h6 8. O-O d6 9. a3 Be6 10. Bxe6 fxe6 11. Nh4 Qc7 12. Ng6 Rg8 13. Nxf8 Rxf8 14. Be3 b5 15. f3 Kf7 16. f4 Kg8 17. f5 exf5 18. Rxf5 Ne7 19. Rxf6 gxf6 20. Bxh6 Rf7 21. Qg4+ Kh8 22. Qh4 Ng8 23. Be3+ Rh7 24. Qf2 Qd7 25. Nd5 Qe6 26. Rf1 Rf8 27. Qf3 Rff7 28. c3 Rhg7 29. Qh5+ Rh7 30. Qf3 Rh4 31. Bg5 fxg5 32. Qxf7 Qxf7 33. Rxf7 Rxe4 34. Rf8 Kg7 35. Rxg8+ Kf7 36. Rxg5 Ke6 37. Nc7+ Kf6 38. Rg3 Re2 39. Rf3+ Kg6 40. b4 Ra2 {[%emt 1:17:00]} 1-0

[Event "Turkish Second League 2019"]
[Site "Konya"]
[Date "2019.07.24"]
[Round "4"]
[White "Erdogmus, Yagiz Kaan"]
[Black "Ozcan, Kadir Kutay"]
[Result "1-0"]
[ECO "B33"]
[WhiteElo "1744"]
[BlackElo "1832"]
[Annotator "NA"]
[PlyCount "89"]
[EventDate "2019.07.22"]
[EventType "team-tourn"]
[EventCountry "TUR"]
[SourceTitle "playchess.com"]
[Source "ChessBase"]
[SourceQuality "1"]
[TimeControl "5400+30"]

1. e4 c5 2. Nf3 Nc6 3. d4 cxd4 4. Nxd4 Nf6 5. Nc3 e5 6. Ndb5 d6 7. Bg5 a6 8. Na3 b5 9. Nd5 Be7 10. Bxf6 Bxf6 11. c3 O-O 12. Nc2 Bg5 13. Bd3 Be6 14. Nce3 Ne7 15. Nxe7+ Qxe7 16. Qe2 Qa7 17. Nc2 Rac8 18. O-O Qc5 19. a4 bxa4 20. Rxa4 a5 21. Rfa1 Qb6 22. Bb5 Rc5 23. c4 Rfc8 24. Ne3 Qb7 25. Nd5 Bxd5 26. exd5 Bd8 27. b4 axb4 28. Ba6 Qb6 29. Bxc8 Rxc8 30. Rb1 Rb8 31. Qb2 f5 32. Rxb4 Qxb4 33. Qxb4 Rxb4 34. Rxb4 Be7 35. Rb7 Kf8 36. Kf1 e4 37. Ke2 Bf6 38. h3 Bd4 39. Rd7 Be5 40. Ke3 Ke8 41. Rb7 Kf8 42. g4 g6 43. Rxh7 Bb2 44. gxf5 gxf5 45. Kf4 {[%emt 1:32:30]} 1-0

[Event "Turkish Second League 2019"]
[Site "Konya"]
[Date "2019.07.24"]
[Round "4"]
[White "Mustu, Hatice Asli"]
[Black "Nesanir, Selin"]
[Result "1-0"]
[ECO "A43"]
[WhiteElo "1679"]
[BlackElo "1622"]
[Annotator "NA"]
[PlyCount "91"]
[EventDate "2019.07.22"]
[EventType "team-tourn"]
[EventCountry "TUR"]
[SourceTitle "playchess.com"]
[Source "ChessBase"]
[SourceQuality "1"]
[TimeControl "5400+30"]

1. d4 {[%emt 0:00:30]} c5 {[%emt 0:00:30]} 2. d5 {[%emt 0:00:00]} e6 {[%emt 0:00:00]} 3. e4 {[%emt 0:01:00]} exd5 {[%emt 0:00:00]} 4. exd5 {[%emt 0:00:30]} d6 {[%emt 0:00:30]} 5. Nc3 {[%emt 0:00:30]} Nf6 {[%emt 0:00:30]} 6. Nf3 {[%emt 0:01:30]} Be7 {[%emt 0:00:30]} 7. h3 {[%emt 0:02:30]} O-O {[%emt 0:02:30]} 8. Be3 {[%emt 0:02:30]} a6 {[%emt 0:00:30]} 9. a4 {[%emt 0:00:30]} Nbd7 {[%emt 0:01:30]} 10. Be2 {[%emt 0:01:30]} Re8 {[%emt 0:02:30]} 11. O-O {[%emt 0:00:30]} Nf8 {[%emt 0:01:30]} 12. Nd2 {[%emt 0:05:30]} Bd7 {[%emt 0:04:30]} 13. a5 {[%emt 0:01:30]} b5 {[%emt 0:07:30]} 14. axb6 {[%emt 0:04:30]} Qxb6 {[%emt 0:00:30]} 15. Nc4 {[%emt 0:02:30]} Qb7 {[%emt 0:02:30]} 16. b3 {[%emt 0:04:30]} Ng6 {[%emt 0:04:30]} 17. f4 {[%emt 0:07:30]} Bf8 {[%emt 0:04:30]} 18. Qd2 {[%emt 0:06:30]} Bf5 {[%emt 0:17:30]} 19. g4 {[%emt 0:04:30]} Ne4 {[%emt 0:08:30]} 20. Nxe4 {[%emt 0:01:30]} Bxe4 {[%emt 0:00:30]} 21. Bf3 {[%emt 0:00:00]} Bxf3 {[%emt 0:02:30]} 22. Rxf3 {[%emt 0:00:00]} Nh4 {[%emt 0:00:30]} 23. Rff1 {[%emt 0:02:30]} Ng6 {[%emt 0:05:30]} 24. Ra4 {[%emt 0:04:30]} h6 {[%emt 0:09:30]} 25. Bf2 {[%emt 0:08:30]} Red8 {[%emt 0:05:16]} 26. Bg3 {[%emt 0:06:30]} Be7 {[%emt 0:03:50]} 27. Na5 {[%emt 0:06:30]} Qc7 {[%emt 0:06:35]} 28. Nc6 {[%emt 0:02:30]} Re8 {[%emt 0:01:04]} 29. Re1 {[%emt 0:01:30]} Kf8 {[%emt 0:03:51]} 30. Rae4 {[%emt 0:02:30]} a5 {[%emt 0:03:26]} 31. Qe2 {[%emt 0:00:30]} Qd7 {[%emt 0:00:57]} 32. f5 {[%emt 0:00:30]} Ne5 {[%emt 0:01:05]} 33. Bxe5 {[%emt 0:01:07]} dxe5 {[%emt 0:00:11]} 34. Rxe5 {[%emt 0:00:02]} Bf6 {[%emt 0:00:39]} 35. Rxe8+ {[%emt 0:00:21]} Rxe8 {[%emt 0:00:07]} 36. Qxe8+ {[%emt 0:00:30]} Qxe8 {[%emt 0:00:06]} 37. Rxe8+ {[%emt 0:00:00]} Kxe8 {[%emt 0:00:05]} 38. Nxa5 {[%emt 0:00:00]} Kd7 {[%emt 0:00:18]} 39. c4 {[%emt 0:00:30]} Bd4+ {[%emt 0:00:41]} 40. Kg2 {[%emt 0:00:30]} Kd6 {[%emt 0:00:14]} 41. Nc6 {[%emt 0:00:00]} Bc3 {[%emt 0:00:22]} 42. Kf3 {[%emt 0:00:00]} g6 {[%emt 0:00:22]} 43. fxg6 {[%emt 0:00:30]} fxg6 {[%emt 0:00:05]} 44. Ke4 {[%emt 0:00:30]} Bd2 {[%emt 0:00:20]} 45. Ne5 {[%emt 0:00:30]} g5 {[%emt 0:00:42]} 46. Nf7+ {[%emt 0:00:30]} 1-0

[Event "Turkish Second League 2019"]
[Site "Konya"]
[Date "2019.07.24"]
[Round "4"]
[White "Cetinkaya, Umut Can"]
[Black "Temizkan, Denizcan"]
[Result "0-1"]
[ECO "C26"]
[WhiteElo "1639"]
[BlackElo "2202"]
[Annotator "NA"]
[PlyCount "46"]
[EventDate "2019.07.22"]
[EventType "team-tourn"]
[EventCountry "TUR"]
[SourceTitle "playchess.com"]
[Source "ChessBase"]
[SourceQuality "1"]
[TimeControl "5400+30"]

1. e4 e5 2. Nc3 Nf6 3. g3 d5 4. exd5 Nxd5 5. Bg2 Nxc3 6. bxc3 Bc5 7. Nf3 e4 8. Qe2 O-O 9. Nd4 Bxd4 10. cxd4 Qxd4 11. Rb1 Nc6 12. O-O f5 13. Bb2 Qa4 14. d3 Be6 15. Rfe1 Rae8 16. dxe4 f4 17. Qd2 Rd8 18. Qc3 Nd4 19. Qxc7 Qxc2 20. Qe5 Ne2+ 21. Kh1 Rf6 22. Qg5 h6 23. Qh5 Rf7 {[%emt 1:39:01]} 0-1